[Event "GrandPrix_30.05"]
[Site "Chess.com"]
[Date "2020.05.30"]
[Round "4"]
[White "Khvicha_Supatashvili"]
[Black "Gurvich_Vitaly"]
[Result "1-0"]
[WhiteElo "2228"]
[BlackElo "2240"]
[TimeControl "600+2"]
[EndTime "9:44:12 PDT"]
[Termination "Khvicha_Supatashvili won by resignation"]

1. d4 {[%clk 0:10:01.9]} 1... d5 {[%clk 0:09:57.8]} 2. c4 {[%clk 0:10:01.3]}
2... dxc4 {[%clk 0:09:58.5]} 3. Nf3 {[%clk 0:10:01.8]} 3... Nf6 {[%clk
0:09:57.1]} 4. e3 {[%clk 0:10:02.7]} 4... b5 {[%clk 0:09:49.7]} 5. a4 {[%clk
0:10:02.4]} 5... b4 {[%clk 0:09:50.8]} 6. Bxc4 {[%clk 0:10:02.7]} 6... e6 {[%clk
0:09:52]} 7. O-O {[%clk 0:10:01.6]} 7... Bb7 {[%clk 0:09:51.4]} 8. Qe2 {[%clk
0:10:01.6]} 8... Nbd7 {[%clk 0:09:47.3]} 9. Nbd2 {[%clk 0:09:49.3]} 9... a5
{[%clk 0:09:43.8]} 10. e4 {[%clk 0:09:46.7]} 10... Be7 {[%clk 0:09:44.4]} 11. e5
{[%clk 0:09:33.6]} 11... Nd5 {[%clk 0:09:45.1]} 12. Ne4 {[%clk 0:09:31.1]} 12...
O-O {[%clk 0:09:45.4]} 13. Rd1 {[%clk 0:09:25.8]} 13... c5 {[%clk 0:09:42.7]}
14. dxc5 {[%clk 0:09:23.9]} 14... Nxc5 {[%clk 0:09:44.6]} 15. Nxc5 {[%clk
0:09:23]} 15... Bxc5 {[%clk 0:09:45.2]} 16. Ng5 {[%clk 0:09:18.4]} 16... h6
{[%clk 0:09:42.2]} 17. Ne4 {[%clk 0:09:16.9]} 17... Qb6 {[%clk 0:09:43.7]} 18.
Qg4 {[%clk 0:08:23.3]} 18... f5 {[%clk 0:09:25.7]} 19. exf6 {[%clk 0:08:22.3]}
19... Nxf6 {[%clk 0:09:25.8]} 20. Qxe6+ {[%clk 0:08:22.4]} 20... Kh8 {[%clk
0:09:27]} 21. Nxc5 {[%clk 0:08:22.5]} 21... Qxc5 {[%clk 0:09:26.6]} 22. Be3
{[%clk 0:08:23.2]} 22... Qh5 {[%clk 0:09:26.4]} 23. Rd4 {[%clk 0:07:38.8]} 23...
Rae8 {[%clk 0:09:20.5]} 24. Qh3 {[%clk 0:07:36.1]} 24... Qg6 {[%clk 0:09:16.4]}
25. Qg3 {[%clk 0:07:29.6]} 25... Qh5 {[%clk 0:09:12.7]} 26. Rh4 {[%clk
0:07:22.8]} 26... Qf5 {[%clk 0:09:10.5]} 27. h3 {[%clk 0:06:48.9]} 27... Ne4
{[%clk 0:08:57.9]} 28. Qc7 {[%clk 0:06:37.2]} 28... Bd5 {[%clk 0:07:42.4]} 29.
Rf4 {[%clk 0:06:00.8]} 29... Qe6 {[%clk 0:07:32.4]} 30. Bd4 {[%clk 0:05:32.7]}
30... Rg8 {[%clk 0:07:24.6]} 31. Re1 {[%clk 0:04:55.8]} 31... Rc8 {[%clk
0:07:16.8]} 32. Bxd5 {[%clk 0:04:51.4]} 32... Qxd5 {[%clk 0:07:13.1]} 33. Bxg7+
{[%clk 0:04:23.7]} 33... Kh7 {[%clk 0:07:12.6]} 34. Qe5 {[%clk 0:04:01.1]} 34...
Qxe5 {[%clk 0:07:02.6]} 35. Bxe5 {[%clk 0:04:00.6]} 35... Ng5 {[%clk 0:07:04.5]}
36. Kf1 {[%clk 0:03:55.9]} 36... Rgf8 {[%clk 0:07:01.2]} 37. Rxf8 {[%clk
0:03:43.3]} 37... Rxf8 {[%clk 0:07:03.1]} 38. Bc7 {[%clk 0:03:44.1]} 38... Rc8
{[%clk 0:07:01]} 39. Bxa5 {[%clk 0:03:42.8]} 39... b3 {[%clk 0:07:01.8]} 40. Bc3
{[%clk 0:03:40.7]} 40... Kg6 {[%clk 0:07:00.8]} 41. a5 {[%clk 0:03:41.2]} 1-0

[Event "GrandPrix_30.05"]
[Site "Chess.com"]
[Date "2020.05.30"]
[Round "4"]
[White "Kildepiotr"]
[Black "rusuvlad95"]
[Result "0-1"]
[WhiteElo "1976"]
[BlackElo "2097"]
[TimeControl "600+2"]
[EndTime "9:44:13 PDT"]
[Termination "rusuvlad95 won by resignation"]

1. Nf3 {[%clk 0:10:01.9]} 1... d5 {[%clk 0:09:58.4]} 2. g3 {[%clk 0:10:00]} 2...
h5 {[%clk 0:09:52.6]} 3. h4 {[%clk 0:09:56.9]} 3... Nf6 {[%clk 0:09:51.2]} 4.
Bg2 {[%clk 0:09:57.9]} 4... c5 {[%clk 0:09:48.3]} 5. d3 {[%clk 0:09:59.2]} 5...
Nc6 {[%clk 0:09:47.3]} 6. Nbd2 {[%clk 0:09:59.9]} 6... e5 {[%clk 0:09:38.1]} 7.
e4 {[%clk 0:10:00.4]} 7... Bg4 {[%clk 0:09:36.4]} 8. O-O {[%clk 0:09:59.9]} 8...
d4 {[%clk 0:09:34.8]} 9. a4 {[%clk 0:09:57.5]} 9... Na5 {[%clk 0:09:32.5]} 10.
Qe1 {[%clk 0:09:48.7]} 10... Bd6 {[%clk 0:09:31]} 11. Nc4 {[%clk 0:09:43.4]}
11... Nxc4 {[%clk 0:09:30]} 12. dxc4 {[%clk 0:09:44.3]} 12... O-O {[%clk
0:09:27.9]} 13. Bg5 {[%clk 0:09:44.3]} 13... Bc7 {[%clk 0:09:26.2]} 14. Nh2
{[%clk 0:09:29.8]} 14... Bd7 {[%clk 0:09:26.8]} 15. Qe2 {[%clk 0:09:22.1]} 15...
g6 {[%clk 0:09:21]} 16. Bf3 {[%clk 0:09:20.4]} 16... Qe7 {[%clk 0:09:17.3]} 17.
g4 {[%clk 0:09:19.6]} 17... Qe6 {[%clk 0:09:13.9]} 18. gxh5 {[%clk 0:09:14.5]}
18... gxh5 {[%clk 0:09:04.1]} 19. Kh1 {[%clk 0:09:08]} 19... Kh8 {[%clk
0:09:02.6]} 20. Rg1 {[%clk 0:09:03.2]} 20... Rg8 {[%clk 0:09:01.5]} 21. Rg3
{[%clk 0:09:01.6]} 21... Rg7 {[%clk 0:09:00.7]} 22. Rag1 {[%clk 0:09:00.1]}
22... Rag8 {[%clk 0:09:01.4]} 23. Bxh5 {[%clk 0:08:55.3]} 23... Nxe4 {[%clk
0:08:55.4]} 24. R3g2 {[%clk 0:08:31.9]} 24... Nxg5 {[%clk 0:08:48.8]} 25. Rxg5
{[%clk 0:08:24.7]} 25... Bc6+ {[%clk 0:08:49.5]} 26. f3 {[%clk 0:08:20.8]} 26...
Rxg5 {[%clk 0:08:29.2]} 27. Rxg5 {[%clk 0:08:05.6]} 27... Rxg5 {[%clk
0:08:30.6]} 28. hxg5 {[%clk 0:08:07.2]} 28... Qf5 {[%clk 0:08:32.1]} 29. Qg2
{[%clk 0:07:58.6]} 29... Qh7 {[%clk 0:08:17]} 30. Qg4 {[%clk 0:07:50.3]} 30...
Kg7 {[%clk 0:08:14.7]} 31. Kg1 {[%clk 0:07:26.7]} 31... Qxc2 {[%clk 0:08:09]}
32. g6 {[%clk 0:06:58.3]} 32... fxg6 {[%clk 0:08:01.2]} 33. Qg5 {[%clk
0:06:59.2]} 33... Qf5 {[%clk 0:07:08]} 34. Qe7+ {[%clk 0:06:53.2]} 34... Qf7
{[%clk 0:07:08.9]} 35. Qg5 {[%clk 0:06:50.6]} 35... e4 {[%clk 0:07:04.2]} 36.
Ng4 {[%clk 0:06:34.5]} 36... Bf4 {[%clk 0:06:58.8]} 37. Qxc5 {[%clk 0:06:29.2]}
37... gxh5 {[%clk 0:06:50.7]} 38. Qxd4+ {[%clk 0:06:30]} 38... Kg6 {[%clk
0:06:39.3]} 39. Nf2 {[%clk 0:06:26.6]} 39... exf3 {[%clk 0:06:21.6]} 40. Nh3
{[%clk 0:06:24.1]} 40... Bg3 {[%clk 0:04:42.7]} 41. Qd3+ {[%clk 0:06:17.7]}
41... Qf5 {[%clk 0:04:26.6]} 0-1

[Event "GrandPrix_30.05"]
[Site "Chess.com"]
[Date "2020.05.30"]
[Round "4"]
[White "DariaVoit"]
[Black "KacperKacprzak"]
[Result "1-0"]
[WhiteElo "2337"]
[BlackElo "2078"]
[TimeControl "600+2"]
[EndTime "9:44:42 PDT"]
[Termination "DariaVoit won by resignation"]

1. d4 {[%clk 0:10:01.9]} 1... Nf6 {[%clk 0:09:59.7]} 2. Nf3 {[%clk 0:10:02.4]}
2... d6 {[%clk 0:09:58.2]} 3. c4 {[%clk 0:10:02.6]} 3... Nbd7 {[%clk 0:09:56.5]}
4. Nc3 {[%clk 0:10:02.2]} 4... g6 {[%clk 0:09:53.4]} 5. Bg5 {[%clk 0:09:57.3]}
5... Bg7 {[%clk 0:09:51.2]} 6. e3 {[%clk 0:09:58.6]} 6... O-O {[%clk 0:09:50.4]}
7. h3 {[%clk 0:09:59.8]} 7... b6 {[%clk 0:08:04]} 8. Bd3 {[%clk 0:09:21.6]} 8...
Bb7 {[%clk 0:08:03.4]} 9. O-O {[%clk 0:09:18.4]} 9... e5 {[%clk 0:07:56.5]} 10.
d5 {[%clk 0:09:18.7]} 10... Nc5 {[%clk 0:07:55.8]} 11. Bc2 {[%clk 0:09:18.5]}
11... a5 {[%clk 0:07:51.5]} 12. Ne1 {[%clk 0:09:09.8]} 12... h6 {[%clk
0:07:45.2]} 13. Bh4 {[%clk 0:08:56.9]} 13... Bc8 {[%clk 0:07:22.7]} 14. a3
{[%clk 0:08:34.3]} 14... g5 {[%clk 0:07:15.1]} 15. Bg3 {[%clk 0:08:34.1]} 15...
Bd7 {[%clk 0:07:00.9]} 16. b4 {[%clk 0:08:19.8]} 16... axb4 {[%clk 0:07:02.8]}
17. axb4 {[%clk 0:08:19.6]} 17... Na6 {[%clk 0:07:02.1]} 18. Rb1 {[%clk
0:07:55.9]} 18... Qe7 {[%clk 0:06:54.2]} 19. Kh1 {[%clk 0:07:05.2]} 19... h5
{[%clk 0:06:53.7]} 20. f4 {[%clk 0:06:46]} 20... h4 {[%clk 0:06:40.8]} 21. fxg5
{[%clk 0:06:36.4]} 21... hxg3 {[%clk 0:06:12.4]} 22. gxf6 {[%clk 0:06:35.3]}
22... Bxf6 {[%clk 0:06:14.3]} 23. Qh5 {[%clk 0:06:17.4]} 23... Rfd8 {[%clk
0:05:25.1]} 24. Ne4 {[%clk 0:05:06.1]} 24... Bg7 {[%clk 0:05:24.6]} 25. Ng5
{[%clk 0:05:03.4]} 25... f6 {[%clk 0:05:02.8]} 26. Qh7+ {[%clk 0:04:52.9]} 26...
Kf8 {[%clk 0:05:02.7]} 27. Nef3 {[%clk 0:04:50]} 27... e4 {[%clk 0:04:47]} 28.
Nh4 {[%clk 0:04:28.4]} 1-0

[Event "GrandPrix_30.05"]
[Site "Chess.com"]
[Date "2020.05.30"]
[Round "4"]
[White "Sam_ChessMood"]
[Black "LazovT"]
[Result "1-0"]
[WhiteElo "2541"]
[BlackElo "2207"]
[TimeControl "600+2"]
[EndTime "9:44:59 PDT"]
[Termination "Sam_ChessMood won by resignation"]

1. e4 {[%clk 0:10:00.3]} 1... c5 {[%clk 0:09:45.7]} 2. Nf3 {[%clk 0:10:00.6]}
2... d6 {[%clk 0:09:46.7]} 3. d4 {[%clk 0:10:01.3]} 3... Nf6 {[%clk 0:09:48.2]}
4. Nc3 {[%clk 0:10:01.6]} 4... cxd4 {[%clk 0:09:49.8]} 5. Nxd4 {[%clk
0:10:02.8]} 5... a6 {[%clk 0:09:51.3]} 6. Be3 {[%clk 0:10:00.6]} 6... e5 {[%clk
0:09:52]} 7. Nb3 {[%clk 0:10:01.8]} 7... Be6 {[%clk 0:09:52.7]} 8. f3 {[%clk
0:10:00.7]} 8... Nbd7 {[%clk 0:09:53.7]} 9. Qd2 {[%clk 0:09:54.8]} 9... b5
{[%clk 0:09:54.8]} 10. O-O-O {[%clk 0:09:31.7]} 10... Nb6 {[%clk 0:09:54]} 11.
Qf2 {[%clk 0:09:31.4]} 11... Nfd7 {[%clk 0:09:54.9]} 12. Kb1 {[%clk 0:09:22.1]}
12... Rc8 {[%clk 0:09:40.6]} 13. Nd5 {[%clk 0:08:31.9]} 13... Bxd5 {[%clk
0:09:40.9]} 14. exd5 {[%clk 0:08:33.1]} 14... g6 {[%clk 0:09:42.5]} 15. h4
{[%clk 0:08:13.7]} 15... Bg7 {[%clk 0:09:41.5]} 16. h5 {[%clk 0:08:14]} 16...
O-O {[%clk 0:09:41.5]} 17. g4 {[%clk 0:08:00.3]} 17... Nc4 {[%clk 0:09:17.9]}
18. Bc1 {[%clk 0:07:50.4]} 18... Ndb6 {[%clk 0:08:49.6]} 19. hxg6 {[%clk
0:07:13.2]} 19... fxg6 {[%clk 0:08:45.1]} 20. Qh2 {[%clk 0:07:13.8]} 20... Na4
{[%clk 0:07:36.2]} 21. Qxh7+ {[%clk 0:06:13]} 21... Kf7 {[%clk 0:07:30.2]} 22.
Bd3 {[%clk 0:06:13.9]} 22... Na3+ {[%clk 0:04:41.9]} 23. bxa3 {[%clk 0:06:03.2]}
23... e4 {[%clk 0:04:40.7]} 24. Bh6 {[%clk 0:05:48.4]} 24... Rg8 {[%clk
0:04:29.3]} 25. fxe4 {[%clk 0:05:15.1]} 25... Nc3+ {[%clk 0:04:26.5]} 26. Kc1
{[%clk 0:05:14.2]} 26... Nxa2+ {[%clk 0:04:16.1]} 27. Kd2 {[%clk 0:05:04.3]} 1-0

[Event "GrandPrix_30.05"]
[Site "Chess.com"]
[Date "2020.05.30"]
[Round "4"]
[White "SoltaniciR"]
[Black "Dolphin_2010"]
[Result "0-1"]
[WhiteElo "2052"]
[BlackElo "2056"]
[TimeControl "600+2"]
[EndTime "9:45:19 PDT"]
[Termination "Dolphin_2010 won by resignation"]

1. e4 {[%clk 0:10:01.9]} 1... c6 {[%clk 0:10:00.8]} 2. c4 {[%clk 0:09:57.9]}
2... d5 {[%clk 0:10:02.7]} 3. exd5 {[%clk 0:09:58.3]} 3... cxd5 {[%clk 0:10:03]}
4. cxd5 {[%clk 0:09:59.4]} 4... Nf6 {[%clk 0:10:03.6]} 5. Qa4+ {[%clk
0:10:00.2]} 5... Bd7 {[%clk 0:09:59.1]} 6. Qb3 {[%clk 0:10:00.6]} 6... Qb6
{[%clk 0:09:52.1]} 7. Nc3 {[%clk 0:10:00.5]} 7... g6 {[%clk 0:09:50.8]} 8. Nf3
{[%clk 0:09:30.7]} 8... Bg7 {[%clk 0:09:47]} 9. Bc4 {[%clk 0:09:31.1]} 9... O-O
{[%clk 0:09:44.5]} 10. Qxb6 {[%clk 0:08:54.5]} 10... axb6 {[%clk 0:09:46.4]} 11.
O-O {[%clk 0:08:49]} 11... Na6 {[%clk 0:09:43]} 12. d4 {[%clk 0:07:51.3]} 12...
Rfd8 {[%clk 0:09:14.5]} 13. Bf4 {[%clk 0:07:40.8]} 13... Rac8 {[%clk 0:09:11.5]}
14. Bb3 {[%clk 0:07:37.6]} 14... Nb4 {[%clk 0:09:08.6]} 15. Ne5 {[%clk
0:06:54.8]} 15... Bf5 {[%clk 0:08:43.9]} 16. d6 {[%clk 0:06:47.9]} 16... e6
{[%clk 0:08:35.1]} 17. a3 {[%clk 0:06:10.8]} 17... Nd3 {[%clk 0:08:26.5]} 18.
Nxd3 {[%clk 0:06:02.7]} 18... Bxd3 {[%clk 0:08:28.4]} 19. Rfd1 {[%clk
0:06:02.2]} 19... Bf5 {[%clk 0:08:25.5]} 20. h3 {[%clk 0:05:58.2]} 20... h5
{[%clk 0:08:25.4]} 21. Rac1 {[%clk 0:05:45.1]} 21... Bf8 {[%clk 0:08:14.1]} 22.
Be5 {[%clk 0:03:41.8]} 22... Ne8 {[%clk 0:07:58.8]} 23. d5 {[%clk 0:03:22.2]}
23... exd5 {[%clk 0:07:43]} 24. Nxd5 {[%clk 0:03:06.1]} 24... Rxc1 {[%clk
0:07:40.3]} 25. Rxc1 {[%clk 0:03:03.7]} 25... Bxd6 {[%clk 0:07:20]} 26. Bxd6
{[%clk 0:02:48.1]} 26... Rxd6 {[%clk 0:06:42.9]} 0-1

[Event "GrandPrix_30.05"]
[Site "Chess.com"]
[Date "2020.05.30"]
[Round "4"]
[White "Mikhail_Golubev"]
[Black "WhiteCapital80"]
[Result "1/2-1/2"]
[WhiteElo "2099"]
[BlackElo "2305"]
[TimeControl "600+2"]
[EndTime "9:45:46 PDT"]
[Termination "Game drawn by agreement"]

1. e4 {[%clk 0:09:56]} 1... e6 {[%clk 0:09:56]} 2. d4 {[%clk 0:09:55.2]} 2... d5
{[%clk 0:09:56]} 3. Nc3 {[%clk 0:09:55.2]} 3... Nf6 {[%clk 0:09:56.5]} 4. Bg5
{[%clk 0:09:54.9]} 4... dxe4 {[%clk 0:09:51.9]} 5. Nxe4 {[%clk 0:09:54.7]} 5...
Nbd7 {[%clk 0:09:50.2]} 6. Nf3 {[%clk 0:09:51.2]} 6... Be7 {[%clk 0:09:47.7]} 7.
Nxf6+ {[%clk 0:09:40.7]} 7... Bxf6 {[%clk 0:09:37.8]} 8. Qd2 {[%clk 0:08:59.8]}
8... Bxg5 {[%clk 0:09:10.2]} 9. Nxg5 {[%clk 0:08:58.4]} 9... h6 {[%clk
0:08:52.6]} 10. Nf3 {[%clk 0:08:31.3]} 10... O-O {[%clk 0:08:49.8]} 11. O-O-O
{[%clk 0:08:03.2]} 11... b6 {[%clk 0:08:42.4]} 12. Bc4 {[%clk 0:06:51.9]} 12...
Bb7 {[%clk 0:08:20.9]} 13. d5 {[%clk 0:06:34.4]} 13... exd5 {[%clk 0:06:50.3]}
14. Bxd5 {[%clk 0:06:30.3]} 14... Bxd5 {[%clk 0:06:47.2]} 15. Qxd5 {[%clk
0:06:28.4]} 15... Nc5 {[%clk 0:06:41.9]} 16. Qf5 {[%clk 0:05:15.3]} 16... Qe8
{[%clk 0:06:17.7]} 17. Rhe1 {[%clk 0:05:03.9]} 17... Qa4 {[%clk 0:06:14.6]} 18.
a3 {[%clk 0:04:54.1]} 18... Rae8 {[%clk 0:06:10.6]} 19. Rxe8 {[%clk 0:02:51.7]}
19... Rxe8 {[%clk 0:05:45.8]} 20. Ne5 {[%clk 0:02:38.8]} 20... f6 {[%clk
0:05:39.7]} 21. Nf3 {[%clk 0:02:38.4]} 21... Qc4 {[%clk 0:05:11.4]} 1/2-1/2

[Event "GrandPrix_30.05"]
[Site "Chess.com"]
[Date "2020.05.30"]
[Round "4"]
[White "sahidi"]
[Black "temus_galaktionov"]
[Result "0-1"]
[WhiteElo "2225"]
[BlackElo "2588"]
[TimeControl "600+2"]
[EndTime "9:45:50 PDT"]
[Termination "temus_galaktionov won by resignation"]

1. e4 {[%clk 0:10:01.9]} 1... c6 {[%clk 0:10:01.9]} 2. d4 {[%clk 0:10:02.1]}
2... g6 {[%clk 0:10:02.4]} 3. Nc3 {[%clk 0:10:01]} 3... Bg7 {[%clk 0:09:56.1]}
4. Be3 {[%clk 0:10:01.1]} 4... d6 {[%clk 0:09:56.8]} 5. Qd2 {[%clk 0:09:59.6]}
5... Nd7 {[%clk 0:09:58.2]} 6. f4 {[%clk 0:09:41.2]} 6... e5 {[%clk 0:09:58.6]}
7. dxe5 {[%clk 0:09:40.4]} 7... dxe5 {[%clk 0:10:00.5]} 8. O-O-O {[%clk
0:09:40.6]} 8... Ngf6 {[%clk 0:09:57.5]} 9. fxe5 {[%clk 0:09:33.3]} 9... Ng4
{[%clk 0:09:58.1]} 10. e6 {[%clk 0:09:24.1]} 10... fxe6 {[%clk 0:09:58.2]} 11.
Bg5 {[%clk 0:09:09.8]} 11... Qxg5 {[%clk 0:09:39.4]} 12. Qxg5 {[%clk 0:09:09.5]}
12... Bh6 {[%clk 0:09:41.1]} 13. Qxh6 {[%clk 0:09:07.4]} 13... Nxh6 {[%clk
0:09:43]} 14. Nf3 {[%clk 0:09:06.5]} 14... Ng4 {[%clk 0:09:43.7]} 15. Rd2 {[%clk
0:08:58.9]} 15... Nde5 {[%clk 0:09:40.7]} 16. Nxe5 {[%clk 0:08:57.6]} 16... Nxe5
{[%clk 0:09:42.6]} 17. Be2 {[%clk 0:08:57.5]} 17... Ke7 {[%clk 0:09:43.2]} 18.
b3 {[%clk 0:08:52.2]} 18... Rf8 {[%clk 0:09:42.4]} 19. g3 {[%clk 0:08:37.9]}
19... b6 {[%clk 0:09:42]} 20. a4 {[%clk 0:08:25.1]} 20... Bb7 {[%clk 0:09:41.3]}
21. Rhd1 {[%clk 0:08:07.4]} 21... Rf2 {[%clk 0:09:32.3]} 22. Bd3 {[%clk
0:07:58.2]} 22... Raf8 {[%clk 0:09:31.1]} 23. Rh1 {[%clk 0:06:24.3]} 23... Rxd2
{[%clk 0:09:16.3]} 24. Kxd2 {[%clk 0:06:24.8]} 24... Rf2+ {[%clk 0:09:18.2]} 25.
Be2 {[%clk 0:06:09.6]} 25... c5 {[%clk 0:08:28.8]} 26. Ke3 {[%clk 0:06:05.7]}
26... Rg2 {[%clk 0:08:25.2]} 27. a5 {[%clk 0:05:15.8]} 27... bxa5 {[%clk
0:08:15.5]} 28. Ra1 {[%clk 0:03:52.3]} 28... Nc6 {[%clk 0:08:13.8]} 29. Bb5
{[%clk 0:03:32.3]} 29... Rxc2 {[%clk 0:07:59.6]} 30. Bxc6 {[%clk 0:03:27.5]}
30... Rxc3+ {[%clk 0:08:00.5]} 31. Kd2 {[%clk 0:03:25.9]} 31... Rxb3 {[%clk
0:08:02]} 32. Bxb7 {[%clk 0:03:27.1]} 32... Rxb7 {[%clk 0:08:03.9]} 33. Rxa5
{[%clk 0:03:28.1]} 33... Kd6 {[%clk 0:07:58.9]} 34. Kd3 {[%clk 0:03:28.4]} 34...
h5 {[%clk 0:07:45.9]} 35. Kc3 {[%clk 0:03:13.4]} 35... Ke5 {[%clk 0:07:42.2]}
36. Rxc5+ {[%clk 0:03:13.6]} 36... Kxe4 {[%clk 0:07:42.7]} 37. Rg5 {[%clk
0:03:12.1]} 37... Rg7 {[%clk 0:07:42.8]} 38. h4 {[%clk 0:03:07.7]} 38... e5
{[%clk 0:07:40.8]} 39. Kc4 {[%clk 0:03:05.6]} 39... Kf3 {[%clk 0:07:24.9]} 40.
Kd5 {[%clk 0:02:44.3]} 40... e4 {[%clk 0:07:23.5]} 41. g4 {[%clk 0:02:44.7]}
41... hxg4 {[%clk 0:07:02.3]} 42. h5 {[%clk 0:02:45.2]} 42... e3 {[%clk
0:07:03.5]} 43. Rxg6 {[%clk 0:02:40.1]} 43... e2 {[%clk 0:06:55.2]} 44. Rf6+
{[%clk 0:02:31.9]} 44... Kg3 {[%clk 0:06:49.5]} 0-1

[Event "GrandPrix_30.05"]
[Site "Chess.com"]
[Date "2020.05.30"]
[Round "4"]
[White "Borisss85"]
[Black "Korona_91"]
[Result "1-0"]
[WhiteElo "2154"]
[BlackElo "2028"]
[TimeControl "600+2"]
[EndTime "9:46:09 PDT"]
[Termination "Borisss85 won by resignation"]

1. e4 {[%clk 0:09:43.7]} 1... e6 {[%clk 0:09:58.7]} 2. d4 {[%clk 0:09:40.3]}
2... d5 {[%clk 0:09:58.9]} 3. Nd2 {[%clk 0:09:37.7]} 3... a6 {[%clk 0:09:58.9]}
4. Ngf3 {[%clk 0:09:32.9]} 4... c5 {[%clk 0:09:59.7]} 5. exd5 {[%clk 0:09:32.6]}
5... exd5 {[%clk 0:10:01.6]} 6. Bd3 {[%clk 0:09:30.6]} 6... c4 {[%clk
0:09:47.1]} 7. Be2 {[%clk 0:09:29.3]} 7... Nc6 {[%clk 0:09:48.5]} 8. O-O {[%clk
0:09:27.4]} 8... Nf6 {[%clk 0:09:49.3]} 9. b3 {[%clk 0:09:11.4]} 9... b5 {[%clk
0:09:49.4]} 10. a4 {[%clk 0:09:10.5]} 10... Bf5 {[%clk 0:09:40.3]} 11. c3 {[%clk
0:09:02.3]} 11... Bd6 {[%clk 0:09:30.7]} 12. Ba3 {[%clk 0:08:49.5]} 12... O-O
{[%clk 0:09:16]} 13. Bxd6 {[%clk 0:08:48.7]} 13... Qxd6 {[%clk 0:09:17.8]} 14.
b4 {[%clk 0:08:48.6]} 14... Rae8 {[%clk 0:09:05]} 15. axb5 {[%clk 0:08:40.8]}
15... axb5 {[%clk 0:09:04.6]} 16. Ra6 {[%clk 0:08:42.1]} 16... Qc7 {[%clk
0:08:58.5]} 17. Re1 {[%clk 0:08:38.8]} 17... Be4 {[%clk 0:08:35.7]} 18. Nf1
{[%clk 0:08:15.9]} 18... Qb7 {[%clk 0:08:22.2]} 19. Ra1 {[%clk 0:08:11.2]} 19...
Ne7 {[%clk 0:08:16.4]} 20. Ng3 {[%clk 0:07:58.8]} 20... Ng6 {[%clk 0:08:16.2]}
21. Qd2 {[%clk 0:07:43.5]} 21... Re7 {[%clk 0:08:09.6]} 22. Ra5 {[%clk
0:07:30.2]} 22... Rfe8 {[%clk 0:08:07.8]} 23. Rea1 {[%clk 0:07:19.8]} 23... h5
{[%clk 0:07:56.5]} 24. Ng5 {[%clk 0:06:24.5]} 24... h4 {[%clk 0:07:40]} 25.
N3xe4 {[%clk 0:06:18.8]} 25... dxe4 {[%clk 0:07:25]} 26. Nh3 {[%clk 0:05:52.4]}
26... e3 {[%clk 0:07:08.6]} 27. fxe3 {[%clk 0:05:53.1]} 27... Rxe3 {[%clk
0:07:09.9]} 28. Bf3 {[%clk 0:05:32.8]} 28... Qd7 {[%clk 0:06:39.8]} 29. Nf2
{[%clk 0:04:56.9]} 29... h3 {[%clk 0:06:26.7]} 30. Ra8 {[%clk 0:04:55.3]} 30...
hxg2 {[%clk 0:06:19.6]} 31. Qxe3 {[%clk 0:04:52.4]} 31... Nh4 {[%clk 0:05:56.6]}
32. Rxe8+ {[%clk 0:04:44.3]} 32... Nxe8 {[%clk 0:05:57.2]} 33. Ra8 {[%clk
0:04:37.5]} 33... Kf8 {[%clk 0:05:41.8]} 34. Bg4 {[%clk 0:04:23.7]} 34... f5
{[%clk 0:05:41]} 35. Bh5 {[%clk 0:04:22]} 35... g6 {[%clk 0:05:37.3]} 36. Qh6+
{[%clk 0:04:22.4]} 36... Kf7 {[%clk 0:05:32.9]} 37. Bd1 {[%clk 0:03:48.2]} 37...
Qe7 {[%clk 0:05:25]} 38. Qh7+ {[%clk 0:03:36.5]} 38... Ng7 {[%clk 0:05:24.5]}
39. Qg8+ {[%clk 0:03:31.5]} 39... Kf6 {[%clk 0:05:25.1]} 40. Qf8+ {[%clk
0:03:30]} 40... Qxf8 {[%clk 0:05:22.5]} 41. Rxf8+ {[%clk 0:03:30.1]} 1-0

[Event "GrandPrix_30.05"]
[Site "Chess.com"]
[Date "2020.05.30"]
[Round "4"]
[White "guylevin1"]
[Black "Pash2015"]
[Result "0-1"]
[WhiteElo "2106"]
[BlackElo "2213"]
[TimeControl "600+2"]
[EndTime "9:46:10 PDT"]
[Termination "Pash2015 won by resignation"]

1. c4 {[%clk 0:10:01.9]} 1... c5 {[%clk 0:08:50.3]} 2. Nf3 {[%clk 0:10:02.2]}
2... Nf6 {[%clk 0:08:50.2]} 3. Nc3 {[%clk 0:10:00.2]} 3... Nc6 {[%clk
0:08:50.2]} 4. d4 {[%clk 0:10:01.7]} 4... cxd4 {[%clk 0:08:50.8]} 5. Nxd4 {[%clk
0:10:03.6]} 5... e5 {[%clk 0:08:52.4]} 6. Ndb5 {[%clk 0:10:03.6]} 6... d6 {[%clk
0:08:52.3]} 7. g3 {[%clk 0:10:01.8]} 7... Be7 {[%clk 0:08:52.9]} 8. Bg2 {[%clk
0:10:02.8]} 8... O-O {[%clk 0:08:54.5]} 9. O-O {[%clk 0:10:04]} 9... a6 {[%clk
0:08:56]} 10. Na3 {[%clk 0:10:05.2]} 10... Be6 {[%clk 0:08:51.1]} 11. Bg5 {[%clk
0:10:03]} 11... h6 {[%clk 0:08:47.9]} 12. Bxf6 {[%clk 0:10:02.9]} 12... Bxf6
{[%clk 0:08:49.8]} 13. Nd5 {[%clk 0:10:04.3]} 13... Rc8 {[%clk 0:08:23.2]} 14.
Nxf6+ {[%clk 0:09:58]} 14... Qxf6 {[%clk 0:08:20.5]} 15. Qxd6 {[%clk 0:09:50.3]}
15... Rfd8 {[%clk 0:08:12]} 16. Qc5 {[%clk 0:09:50.9]} 16... Nd4 {[%clk
0:08:11.5]} 17. Qb6 {[%clk 0:09:51.7]} 17... Nxe2+ {[%clk 0:08:10]} 18. Kh1
{[%clk 0:09:52.4]} 18... Nd4 {[%clk 0:08:10.2]} 19. f4 {[%clk 0:09:32.2]} 19...
exf4 {[%clk 0:08:03.2]} 20. Rxf4 {[%clk 0:09:29.3]} 20... Qe5 {[%clk 0:08:04.4]}
21. Qxb7 {[%clk 0:07:22.6]} 21... Rb8 {[%clk 0:07:49.2]} 22. Qa7 {[%clk
0:07:22.5]} 22... Rxb2 {[%clk 0:07:44.5]} 23. Re4 {[%clk 0:07:02.4]} 23... Qd6
{[%clk 0:07:29]} 24. c5 {[%clk 0:03:49.6]} 24... Qd5 {[%clk 0:06:32.4]} 25. Rd1
{[%clk 0:03:43.5]} 25... Qxa2 {[%clk 0:06:13.5]} 26. Rexd4 {[%clk 0:01:47.8]}
26... Rxd4 {[%clk 0:05:58.3]} 27. Rxd4 {[%clk 0:01:46.6]} 27... Qa1+ {[%clk
0:05:58.1]} 0-1